[Event "WYCC 2018 O14"]
[Site "Halkidiki"]
[Date "2018.10.28"]
[Round "9"]
[White "Dardha, Daniel"]
[Black "Subelj, Jan"]
[Result "0-1"]
[ECO "C48"]
[WhiteElo "2316"]
[BlackElo "2281"]
[Annotator "NA"]
[PlyCount "112"]
[EventDate "2018.10.20"]
[EventType "swiss"]
[EventCountry "GRE"]
[SourceTitle "playchess.com"]
[Source "ChessBase"]
[SourceQuality "1"]
[TimeControl "40/5400+30:1800+30"]

1. e4 {[%emt 0:00:00]} e5 {[%emt 0:00:00]} 2. Nf3 {[%emt 0:00:00]} Nc6 {[%emt 0:00:00]} 3. Nc3 {[%emt 0:00:00]} Nf6 {[%emt 0:00:07]} 4. Bb5 {[%emt 0:00:00]} Bd6 {[%emt 0:00:40]} 5. d3 {[%emt 0:00:07]} a6 {[%emt 0:01:53]} 6. Ba4 {[%emt 0:01:21]} O-O {[%emt 0:01:18]} 7. a3 {[%emt 0:02:08]} Re8 {[%emt 0:06:22]} 8. Bb3 {[%emt 0:06:16]} Be7 {[%emt 0:13:31]} 9. O-O {[%emt 0:06:42]} d6 {[%emt 0:04:36]} 10. h3 h6 {[%emt 0:01:31]} 11. Be3 {[%emt 0:31:01]} Bf8 {[%emt 0:01:25]} 12. d4 {[%emt 0:03:26]} exd4 {[%emt 0:01:50]} 13. Nxd4 {[%emt 0:00:10]} Na5 {[%emt 0:01:13]} 14. Ba2 {[%emt 0:07:11]} c5 $11 {[%emt 0:10:37]} 15. Nf5 {[%emt 0:09:06]} Nxe4 {[%emt 0:02:23]} 16. Qd5 {[%emt 0:05:01]} Nf6 {[%emt 0:00:53]} 17. Qxf7+ Kh7 18. Nh4 {[%emt 0:01:22]} Nc6 {[%emt 0:02:12]} 19. Nd5 {[%emt 0:06:11]} Be6 {[%emt 0:01:00]} 20. Nxf6+ {[%emt 0:02:17]} Qxf6 {[%emt 0:00:10]} 21. Qxf6 {[%emt 0:01:25]} gxf6 {[%emt 0:00:02]} 22. Bxe6 {[%emt 0:00:13]} Rxe6 {[%emt 0:00:04]} 23. Rad1 {[%emt 0:00:07]} Rd8 {[%emt 0:00:37]} 24. Rd5 {[%emt 0:01:46]} Re5 {[%emt 0:02:45]} 25. Rfd1 Nd4 26. Rxe5 {[%emt 0:07:45]} fxe5 {[%emt 0:02:37]} 27. c3 {[%emt 0:02:12]} Ne6 {[%emt 0:04:25]} 28. c4 {[%emt 0:02:13]} b5 29. b3 {[%emt 0:03:30]} Rb8 {[%emt 0:04:24]} 30. Rd5 {[%emt 0:00:30]} bxc4 {[%emt 0:01:29]} 31. bxc4 {[%emt 0:00:01]} Ng7 {[%emt 0:03:47]} 32. f4 Rb3 33. Kf2 {[%emt 0:01:29]} e4 {[%emt 0:11:19]} 34. f5 {[%emt 0:00:32]} Be7 {[%emt 0:00:22]} 35. Ng6 {[%emt 0:01:08]} Nxf5 {[%emt 0:01:13]} 36. Nxe7 {[%emt 0:00:24]} Nxe3 {[%emt 0:01:21]} 37. Rxd6 {[%emt 0:00:03]} Nxc4 {[%emt 0:00:08]} 38. Rxa6 {[%emt 0:01:32]} e3+ {[%emt 0:05:06]} 39. Kf3 {[%emt 0:01:07]} e2+ {[%emt 0:00:15]} 40. Kxe2 {[%emt 0:00:00]} Re3+ {[%emt 0:00:00]} 41. Kf2 {[%emt 0:01:29]} Rxe7 {[%emt 0:00:47]} 42. Rc6 {[%emt 0:11:45]} Ne5 {[%emt 0:06:42]} 43. Rc8 {[%emt 0:00:36]} Re6 {[%emt 0:00:49]} 44. Ke2 {[%emt 0:05:06]} Kg6 45. Kd2 Rc6 {[%emt 0:00:51]} 46. Ra8 {[%emt 0:01:29]} Kf5 {[%emt 0:01:11]} 47. a4 {[%emt 0:03:58]} c4 {[%emt 0:01:27]} 48. Kc3 {[%emt 0:01:55]} Rb6 {[%emt 0:00:39]} 49. a5 {[%emt 0:04:40]} Rb3+ {[%emt 0:00:07]} 50. Kc2 {[%emt 0:00:41]} Nc6 {[%emt 0:01:13]} 51. a6 {[%emt 0:02:04]} Nb4+ {[%emt 0:02:59]} 52. Kc1 {[%emt 0:00:20]} c3 {[%emt 0:01:07]} 53. Rf8+ {[%emt 0:01:36]} Kg6 {[%emt 0:00:09]} 54. Rg8+ {[%emt 0:01:16]} Kh5 {[%emt 0:00:42]} 55. a7 {[%emt 0:00:41]} Rb2 {[%emt 0:00:24]} 56. Kd1 {[%emt 0:00:56]} Nd3 {[%emt 0:00:21]} 0-1

[Event "WYCC 2018 O14"]
[Site "Halkidiki"]
[Date "2018.10.28"]
[Round "9"]
[White "Gharibyan, Mamikon"]
[Black "Dao, Minh Nhat"]
[Result "1/2-1/2"]
[ECO "A05"]
[WhiteElo "2314"]
[BlackElo "1956"]
[Annotator "NA"]
[PlyCount "87"]
[EventDate "2018.10.20"]
[EventType "swiss"]
[EventCountry "GRE"]
[SourceTitle "playchess.com"]
[Source "ChessBase"]
[SourceQuality "1"]
[TimeControl "40/5400+30:1800+30"]

1. Nf3 {[%emt 0:00:00]} Nf6 {[%emt 0:00:00]} 2. c4 {[%emt 0:00:15]} g6 {[%emt 0:00:00]} 3. Nc3 {[%emt 0:00:17]} d5 {[%emt 0:00:15]} 4. cxd5 {[%emt 0:00:07]} Nxd5 {[%emt 0:00:05]} 5. Qb3 {[%emt 0:00:04]} Nb6 {[%emt 0:02:27]} 6. d4 {[%emt 0:00:44]} Bg7 {[%emt 0:00:57]} 7. e4 {[%emt 0:00:28]} O-O {[%emt 0:02:52]} 8. Be3 {[%emt 0:00:05]} Bg4 {[%emt 0:02:04]} 9. Rd1 {[%emt 0:00:51]} Nc6 {[%emt 0:03:27]} 10. d5 {[%emt 0:00:23]} Ne5 {[%emt 0:00:46]} 11. Be2 {[%emt 0:00:24]} Nxf3+ {[%emt 0:03:15]} 12. gxf3 {[%emt 0:00:55]} Bh3 {[%emt 0:02:09]} 13. a4 {[%emt 0:02:51]} e6 {[%emt 0:06:27]} 14. a5 {[%emt 0:10:45]} Nd7 {[%emt 0:01:17]} 15. Rg1 {[%emt 0:04:07]} exd5 {[%emt 0:07:29]} 16. Nxd5 {[%emt 0:01:49]} Be6 {[%emt 0:11:57]} 17. Qb4 {[%emt 0:40:52]} Bxd5 {[%emt 0:15:23]} 18. Rxd5 {[%emt 0:01:40]} c6 {[%emt 0:01:09]} 19. Rd2 {[%emt 0:01:53]} Qc8 {[%emt 0:03:33]} 20. Kf1 {[%emt 0:05:07]} Nf6 {[%emt 0:09:13]} 21. Kg2 {[%emt 0:01:50]} Nh5 {[%emt 0:02:21]} 22. f4 {[%emt 0:01:55]} Nf6 {[%emt 0:00:17]} 23. Bf3 {[%emt 0:03:14]} Re8 {[%emt 0:00:49]} 24. Rgd1 {[%emt 0:01:19]} b6 {[%emt 0:07:45]} 25. axb6 {[%emt 0:04:56]} axb6 {[%emt 0:00:03]} 26. h3 {[%emt 0:01:36]} Rb8 {[%emt 0:05:21]} 27. e5 {[%emt 0:01:05]} Nd5 {[%emt 0:02:22]} 28. Bxd5 {[%emt 0:00:34]} cxd5 {[%emt 0:00:05]} 29. Rxd5 {[%emt 0:00:06]} Qf5 {[%emt 0:00:45]} 30. Rd7 {[%emt 0:02:55]} Bf8 {[%emt 0:02:25]} 31. Qc4 {[%emt 0:01:02]} g5 {[%emt 0:01:46]} 32. fxg5 {[%emt 0:00:55]} Rxe5 {[%emt 0:00:03]} 33. Rc7 {[%emt 0:05:32]} Bc5 {[%emt 0:02:00]} 34. Qf4 {[%emt 0:04:37]} Bxe3 {[%emt 0:00:44]} 35. fxe3 {[%emt 0:00:17]} Qxg5+ {[%emt 0:00:21]} 36. Qxg5+ {[%emt 0:00:46]} Rxg5+ {[%emt 0:00:05]} 37. Kf3 {[%emt 0:00:03]} Rb5 {[%emt 0:00:19]} 38. Rdd7 {[%emt 0:00:55]} Rf8 {[%emt 0:00:13]} 39. Rc2 {[%emt 0:00:13]} Re8 {[%emt 0:00:31]} 40. Rc4 {[%emt 0:00:00]} Rxb2 {[%emt 0:00:00]} 41. Rg4+ {[%emt 0:03:05]} Kf8 {[%emt 0:03:52]} 42. Rf4 {[%emt 0:00:10]} Re7 {[%emt 0:00:05]} 43. Rd8+ {[%emt 0:00:07]} Re8 {[%emt 0:00:20]} 44. Rd7 {[%emt 0:00:06]} 1/2-1/2

[Event "WYCC 2018 O14"]
[Site "Halkidiki"]
[Date "2018.10.28"]
[Round "9"]
[White "Suleymanli, Aydin"]
[Black "Van Dael, Siem"]
[Result "1/2-1/2"]
[ECO "D43"]
[WhiteElo "2313"]
[BlackElo "2202"]
[Annotator "NA"]
[PlyCount "101"]
[EventDate "2018.10.20"]
[EventType "swiss"]
[EventCountry "GRE"]
[SourceTitle "playchess.com"]
[Source "ChessBase"]
[SourceQuality "1"]
[TimeControl "40/5400+30:1800+30"]

1. c4 {[%emt 0:00:00]} c6 {[%emt 0:00:00]} 2. Nf3 {[%emt 0:01:29]} Nf6 {[%emt 0:00:00]} 3. d4 {[%emt 0:00:40]} d5 {[%emt 0:00:00]} 4. Nc3 {[%emt 0:00:03]} e6 {[%emt 0:00:00]} 5. Bg5 {[%emt 0:00:02]} h6 {[%emt 0:00:03]} 6. Bxf6 {[%emt 0:00:14]} Qxf6 {[%emt 0:00:05]} 7. e3 {[%emt 0:00:07]} Nd7 {[%emt 0:13:13]} 8. a3 {[%emt 0:02:31]} Bd6 {[%emt 0:11:24]} 9. e4 {[%emt 0:12:58]} dxe4 {[%emt 0:00:25]} 10. Nxe4 {[%emt 0:00:04]} Qe7 {[%emt 0:00:05]} 11. Nxd6+ {[%emt 0:00:29]} Qxd6 {[%emt 0:00:06]} 12. Bd3 {[%emt 0:00:05]} b6 {[%emt 0:03:36]} 13. b4 {[%emt 0:08:11]} Bb7 {[%emt 0:02:18]} 14. c5 {[%emt 0:01:02]} Qf4 {[%emt 0:12:07]} 15. O-O {[%emt 0:00:20]} O-O-O {[%emt 0:01:41]} 16. Re1 {[%emt 0:01:25]} Rhe8 {[%emt 0:01:17]} 17. Qc2 {[%emt 0:14:33]} Kb8 {[%emt 0:08:15]} 18. a4 {[%emt 0:05:53]} Qc7 {[%emt 0:03:32]} 19. cxb6 {[%emt 0:10:10]} Nxb6 {[%emt 0:02:02]} 20. a5 {[%emt 0:14:34]} Nd5 {[%emt 0:00:45]} 21. Qb2 {[%emt 0:00:26]} a6 {[%emt 0:05:17]} 22. Rac1 {[%emt 0:04:12]} Qd6 {[%emt 0:01:44]} 23. Rc5 {[%emt 0:01:39]} f6 {[%emt 0:00:53]} 24. Rec1 {[%emt 0:01:35]} Ka7 {[%emt 0:03:34]} 25. g3 {[%emt 0:09:26]} g5 {[%emt 0:05:26]} 26. Be4 {[%emt 0:03:19]} Ne7 {[%emt 0:04:27]} 27. R5c4 {[%emt 0:01:14]} f5 {[%emt 0:01:21]} 28. Bb1 {[%emt 0:04:03]} g4 {[%emt 0:04:23]} 29. Ne5 {[%emt 0:01:02]} Qd5 {[%emt 0:00:05]} 30. f3 {[%emt 0:02:34]} gxf3 {[%emt 0:00:11]} 31. Qf2 {[%emt 0:00:08]} c5 {[%emt 0:00:57]} 32. bxc5 {[%emt 0:00:22]} Nc6 {[%emt 0:00:21]} 33. Nxc6+ {[%emt 0:00:33]} Bxc6 {[%emt 0:00:10]} 34. Rb4 {[%emt 0:00:59]} e5 {[%emt 0:00:30]} 35. Ba2 {[%emt 0:00:23]} Qe4 {[%emt 0:03:59]} 36. Re1 {[%emt 0:00:14]} exd4 {[%emt 0:04:26]} 37. Rxe4 {[%emt 0:00:13]} fxe4 {[%emt 0:00:03]} 38. Rb1 {[%emt 0:01:12]} e3 {[%emt 0:00:48]} 39. Qc2 {[%emt 0:00:31]} d3 {[%emt 0:02:41]} 40. Qb2 {[%emt 0:00:00]} f2+ {[%emt 0:00:00]} 41. Kf1 {[%emt 0:00:36]} Bb5 {[%emt 0:03:29]} 42. c6 {[%emt 0:14:19]} Re7 {[%emt 0:18:17]} 43. Qf6 {[%emt 0:06:59]} d2+ {[%emt 0:00:51]} 44. Kg2 {[%emt 0:00:44]} f1=Q+ {[%emt 0:00:46]} 45. Rxf1 {[%emt 0:00:06]} Bxf1+ {[%emt 0:00:05]} 46. Kg1 {[%emt 0:00:20]} Rde8 {[%emt 0:11:24]} 47. c7 {[%emt 0:05:13]} Kb7 {[%emt 0:00:51]} 48. Bd5+ {[%emt 0:02:23]} Kxc7 {[%emt 0:01:37]} 49. Qc6+ {[%emt 0:00:35]} Kd8 {[%emt 0:00:49]} 50. Qa8+ {[%emt 0:00:06]} Kc7 {[%emt 0:00:17]} 51. Qc6+ 1/2-1/2

[Event "WYCC 2018 O14"]
[Site "Halkidiki"]
[Date "2018.10.28"]
[Round "9"]
[White "Tsay, Vincent"]
[Black "Patrelakis, Evaggelos"]
[Result "1/2-1/2"]
[ECO "E70"]
[WhiteElo "2310"]
[BlackElo "2146"]
[Annotator "NA"]
[PlyCount "143"]
[EventDate "2018.10.20"]
[EventType "swiss"]
[EventCountry "GRE"]
[SourceTitle "playchess.com"]
[Source "ChessBase"]
[SourceQuality "1"]
[TimeControl "40/5400+30:1800+30"]

1. d4 {[%emt 0:00:00]} Nf6 {[%emt 0:00:00]} 2. c4 {[%emt 0:00:00]} g6 {[%emt 0:00:00]} 3. Nc3 {[%emt 0:00:00]} Bg7 {[%emt 0:00:00]} 4. e4 {[%emt 0:00:00]} d6 {[%emt 0:00:00]} 5. Bg5 {[%emt 0:00:00]} O-O {[%emt 0:00:28]} 6. Qd2 {[%emt 0:00:02]} Nbd7 {[%emt 0:01:12]} 7. Nf3 {[%emt 0:00:33]} e5 {[%emt 0:03:40]} 8. Be2 {[%emt 0:01:44]} c6 {[%emt 0:02:31]} 9. Rd1 {[%emt 0:05:12]} exd4 {[%emt 0:07:12]} 10. Nxd4 {[%emt 0:01:00]} Re8 {[%emt 0:15:25]} 11. f3 {[%emt 0:03:41]} Qb6 {[%emt 0:01:12]} 12. Be3 {[%emt 0:03:15]} Qc7 {[%emt 0:13:30]} 13. O-O {[%emt 0:09:46]} Nh5 {[%emt 0:01:54]} 14. Rfe1 {[%emt 0:02:29]} Ne5 {[%emt 0:01:26]} 15. Bf1 {[%emt 0:03:20]} Qe7 {[%emt 0:06:17]} 16. b3 {[%emt 0:04:49]} Bf6 {[%emt 0:01:39]} 17. Qf2 $16 {[%emt 0:04:14]} a6 {[%emt 0:14:10]} 18. Na4 {[%emt 0:06:28]} Nd7 {[%emt 0:05:46]} 19. g3 {[%emt 0:07:36]} Ng7 {[%emt 0:07:09]} 20. Bg2 Ne6 21. f4 {[%emt 0:11:28]} Nxd4 {[%emt 0:02:03]} 22. Bxd4 {[%emt 0:06:23]} b5 {[%emt 0:00:34]} 23. Nb6 Nxb6 {[%emt 0:00:01]} 24. Bxf6 {[%emt 0:07:15]} Qxf6 {[%emt 0:02:07]} 25. Qxb6 {[%emt 0:05:11]} Bg4 26. Rd2 bxc4 {[%emt 0:03:07]} 27. bxc4 {[%emt 0:01:21]} Qc3 {[%emt 0:00:26]} 28. Qd4 {[%emt 0:01:34]} Qb4 {[%emt 0:00:31]} 29. Rc1 {[%emt 0:02:39]} Rad8 {[%emt 0:05:40]} 30. h3 {[%emt 0:03:58]} Be6 {[%emt 0:01:55]} 31. g4 {[%emt 0:00:31]} Qc5 {[%emt 0:01:19]} 32. Kh1 {[%emt 0:02:28]} Qxd4 {[%emt 0:01:33]} 33. Rxd4 {[%emt 0:00:04]} c5 {[%emt 0:00:11]} 34. Rd3 {[%emt 0:01:18]} f5 {[%emt 0:00:03]} 35. exf5 {[%emt 0:00:46]} gxf5 {[%emt 0:00:02]} 36. Bf3 {[%emt 0:02:04]} Rf8 {[%emt 0:01:20]} 37. g5 {[%emt 0:00:38]} Rfe8 {[%emt 0:01:20]} 38. Bc6 {[%emt 0:01:30]} Bd7 {[%emt 0:02:17]} 39. Bd5+ {[%emt 0:00:52]} Kg7 {[%emt 0:00:32]} 40. Rb1 {[%emt 0:00:00]} Rb8 {[%emt 0:00:00]} 41. Rdb3 {[%emt 0:03:43]} Rxb3 {[%emt 0:02:11]} 42. Rxb3 {[%emt 0:01:40]} Be6 {[%emt 0:04:52]} 43. Rb7+ {[%emt 0:07:06]} Kg8 {[%emt 0:01:14]} 44. Rb6 {[%emt 0:02:09]} Bxd5+ {[%emt 0:00:46]} 45. cxd5 {[%emt 0:00:47]} Re1+ {[%emt 0:00:36]} 46. Kg2 {[%emt 0:00:08]} Re2+ {[%emt 0:00:12]} 47. Kg3 {[%emt 0:01:20]} Rxa2 {[%emt 0:00:26]} 48. Rxd6 {[%emt 0:00:08]} Ra3+ {[%emt 0:00:25]} 49. Kf2 {[%emt 0:02:29]} Rxh3 {[%emt 0:06:23]} 50. Rc6 {[%emt 0:04:12]} Rd3 {[%emt 0:01:42]} 51. Rxc5 {[%emt 0:01:28]} h6 {[%emt 0:02:15]} 52. gxh6 {[%emt 0:02:17]} Kh7 {[%emt 0:00:28]} 53. Ra5 {[%emt 0:03:05]} Kxh6 {[%emt 0:01:18]} 54. Rxa6+ {[%emt 0:00:04]} Kh5 {[%emt 0:00:24]} 55. Rd6 {[%emt 0:03:09]} Kg4 {[%emt 0:00:28]} 56. Ke2 {[%emt 0:00:10]} Rd4 {[%emt 0:00:15]} 57. Ke3 {[%emt 0:00:39]} Re4+ {[%emt 0:00:28]} 58. Kd3 {[%emt 0:00:06]} Kxf4 {[%emt 0:00:07]} 59. Re6 {[%emt 0:03:01]} Kf3 {[%emt 0:01:59]} 60. Rf6 {[%emt 0:01:55]} f4 {[%emt 0:00:51]} 61. d6 {[%emt 0:01:00]} Re1 {[%emt 0:00:42]} 62. Kd4 {[%emt 0:00:40]} Kg3 {[%emt 0:00:18]} 63. Rg6+ {[%emt 0:00:41]} Kf2 {[%emt 0:00:36]} 64. Kd5 {[%emt 0:01:31]} Rd1+ {[%emt 0:00:20]} 65. Kc6 {[%emt 0:01:24]} f3 {[%emt 0:00:07]} 66. d7 {[%emt 0:00:05]} Rxd7 {[%emt 0:00:08]} 67. Kxd7 {[%emt 0:00:04]} Ke2 {[%emt 0:00:12]} 68. Re6+ {[%emt 0:00:06]} Kd1 {[%emt 0:00:13]} 69. Kd6 {[%emt 0:00:22]} f2 {[%emt 0:00:07]} 70. Rf6 {[%emt 0:00:04]} Ke2 {[%emt 0:00:08]} 71. Re6+ {[%emt 0:00:01]} Kd1 {[%emt 0:00:08]} 72. Rf6 {[%emt 0:00:04]} 1/2-1/2

[Event "WYCC 2018 O14"]
[Site "Halkidiki"]
[Date "2018.10.28"]
[Round "9"]
[White "Popov, Konstantin"]
[Black "Gavriil, Odysseas-Panagiotis"]
[Result "1-0"]
[ECO "B07"]
[WhiteElo "2304"]
[BlackElo "2009"]
[Annotator "NA"]
[PlyCount "97"]
[EventDate "2018.10.20"]
[EventType "swiss"]
[EventCountry "GRE"]
[SourceTitle "playchess.com"]
[Source "ChessBase"]
[SourceQuality "1"]
[TimeControl "40/5400+30:1800+30"]

1. e4 {[%emt 0:00:00]} d6 {[%emt 0:00:00]} 2. d4 {[%emt 0:00:00]} Nf6 {[%emt 0:00:00]} 3. Nc3 {[%emt 0:00:09]} c6 {[%emt 0:00:00]} 4. Nf3 {[%emt 0:00:23]} Bg4 {[%emt 0:00:00]} 5. h3 {[%emt 0:00:29]} Bh5 {[%emt 0:00:09]} 6. g4 {[%emt 0:00:57]} Bg6 {[%emt 0:00:07]} 7. Qe2 {[%emt 0:00:23]} e6 {[%emt 0:00:07]} 8. h4 {[%emt 0:00:24]} h5 {[%emt 0:00:45]} 9. g5 {[%emt 0:00:08]} Nfd7 {[%emt 0:00:04]} 10. d5 {[%emt 0:01:41]} cxd5 {[%emt 0:01:45]} 11. exd5 {[%emt 0:00:08]} e5 {[%emt 0:00:07]} 12. Bh3 {[%emt 0:00:53]} Be7 {[%emt 0:02:20]} 13. Be3 {[%emt 0:01:19]} Na6 {[%emt 0:12:17]} 14. O-O-O {[%emt 0:00:24]} Nac5 {[%emt 0:04:42]} 15. Nd2 {[%emt 0:01:52]} Rc8 {[%emt 0:13:34]} 16. f4 {[%emt 0:18:56]} Na4 {[%emt 0:18:15]} 17. f5 {[%emt 0:02:57]} Nxc3 {[%emt 0:00:53]} 18. bxc3 {[%emt 0:00:09]} Bh7 {[%emt 0:00:17]} 19. Ne4 {[%emt 0:12:53]} Qc7 {[%emt 0:07:12]} 20. Qxh5 {[%emt 0:05:21]} g6 {[%emt 0:01:25]} 21. Qf3 {[%emt 0:04:00]} gxf5 {[%emt 0:04:39]} 22. Bxf5 Bxf5 {[%emt 0:00:56]} 23. Qxf5 {[%emt 0:00:35]} Nf8 {[%emt 0:01:45]} 24. Rdf1 {[%emt 0:07:48]} Rh7 {[%emt 0:00:30]} 25. h5 {[%emt 0:00:07]} Qd7 {[%emt 0:00:12]} 26. Kd2 {[%emt 0:03:20]} Rc4 {[%emt 0:04:10]} 27. Qxd7+ {[%emt 0:00:17]} Kxd7 {[%emt 0:01:33]} 28. Kd3 {[%emt 0:00:40]} Ra4 {[%emt 0:00:06]} 29. Rf5 {[%emt 0:05:12]} Rxa2 {[%emt 0:01:52]} 30. g6 {[%emt 0:02:12]} Nxg6 {[%emt 0:07:22]} 31. hxg6 {[%emt 0:00:22]} fxg6 {[%emt 0:00:07]} 32. Rff1 {[%emt 0:02:09]} Rg7 {[%emt 0:03:18]} 33. Bg5 {[%emt 0:01:11]} Ra4 {[%emt 0:03:24]} 34. Bxe7 {[%emt 0:00:24]} Kxe7 {[%emt 0:01:32]} 35. Ra1 {[%emt 0:00:31]} Rxa1 {[%emt 0:01:25]} 36. Rxa1 {[%emt 0:00:01]} a6 {[%emt 0:02:51]} 37. Rb1 {[%emt 0:00:08]} b5 {[%emt 0:01:49]} 38. Ra1 {[%emt 0:00:26]} Rh7 {[%emt 0:00:16]} 39. Rxa6 {[%emt 0:00:51]} Rh3+ {[%emt 0:00:27]} 40. Ke2 {[%emt 0:00:00]} Rh2+ {[%emt 0:00:00]} 41. Nf2 {[%emt 0:00:32]} g5 {[%emt 0:02:14]} 42. Kf3 {[%emt 0:00:19]} Rh8 {[%emt 0:00:56]} 43. Rb6 {[%emt 0:03:05]} Ra8 {[%emt 0:06:22]} 44. Ne4 {[%emt 0:00:29]} Ra2 {[%emt 0:00:32]} 45. Nxg5 {[%emt 0:01:02]} Rxc2 {[%emt 0:01:36]} 46. Ne4 {[%emt 0:00:07]} Rb2 {[%emt 0:03:07]} 47. Rb7+ {[%emt 0:00:19]} Kd8 {[%emt 0:00:23]} 48. Nxd6 {[%emt 0:00:25]} Rb3 {[%emt 0:00:13]} 49. Nxb5 {[%emt 0:00:28]} 1-0

[Event "WYCC 2018 O14"]
[Site "Halkidiki"]
[Date "2018.10.28"]
[Round "9"]
[White "Tadic, Stefan"]
[Black "Karadzhov, Ivan"]
[Result "1-0"]
[ECO "C85"]
[WhiteElo "2295"]
[BlackElo "2040"]
[Annotator "NA"]
[PlyCount "55"]
[EventDate "2018.10.20"]
[EventType "swiss"]
[EventCountry "GRE"]
[SourceTitle "playchess.com"]
[Source "ChessBase"]
[SourceQuality "1"]
[TimeControl "40/5400+30:1800+30"]

1. e4 {[%emt 0:00:00]} e5 {[%emt 0:00:02]} 2. Nf3 {[%emt 0:00:04]} Nc6 {[%emt 0:00:24]} 3. Bb5 {[%emt 0:00:36]} a6 {[%emt 0:00:36]} 4. Ba4 {[%emt 0:00:43]} Nf6 {[%emt 0:00:20]} 5. O-O {[%emt 0:00:44]} Be7 {[%emt 0:00:42]} 6. Bxc6 {[%emt 0:01:09]} dxc6 {[%emt 0:01:32]} 7. d3 {[%emt 0:00:12]} Nd7 {[%emt 0:00:49]} 8. Nbd2 {[%emt 0:00:59]} O-O {[%emt 0:02:03]} 9. Nc4 {[%emt 0:00:42]} f6 {[%emt 0:01:44]} 10. Nh4 {[%emt 0:01:48]} Nc5 {[%emt 0:05:37]} 11. Nf5 {[%emt 0:05:14]} Bxf5 {[%emt 0:02:45]} 12. exf5 Qd5 {[%emt 0:11:17]} 13. Qg4 {[%emt 0:16:03]} Kh8 $14 {[%emt 0:06:07]} 14. Re1 {[%emt 0:04:28]} Qf7 {[%emt 0:04:18]} 15. Bd2 {[%emt 0:12:54]} b6 {[%emt 0:10:23]} 16. Re3 {[%emt 0:05:58]} Rg8 {[%emt 0:05:05]} 17. Rae1 {[%emt 0:14:16]} g6 {[%emt 0:12:40]} 18. Bc3 {[%emt 0:06:29]} gxf5 {[%emt 0:06:51]} 19. Qxf5 {[%emt 0:01:12]} Rg7 {[%emt 0:12:32]} 20. Nxe5 {[%emt 0:20:24]} fxe5 {[%emt 0:09:19]} 21. Qxe5 {[%emt 0:03:04]} Bf8 {[%emt 0:02:24]} 22. Qg5 {[%emt 0:01:28]} Qg6 {[%emt 0:02:08]} 23. Rg3 {[%emt 0:01:07]} Qxg5 {[%emt 0:00:58]} 24. Rxg5 {[%emt 0:00:01]} Rd8 {[%emt 0:00:42]} 25. Re7 {[%emt 0:01:59]} Bxe7 {[%emt 0:00:32]} 26. Rxg7 {[%emt 0:00:05]} Rd7 {[%emt 0:00:38]} 27. Rg6+ {[%emt 0:00:29]} Bf6 {[%emt 0:00:27]} 28. Bxf6+ {[%emt 0:00:05]} 1-0

[Event "WYCC 2018 O14"]
[Site "Halkidiki"]
[Date "2018.10.28"]
[Round "9"]
[White "Ognean, Mihnea-Ionut"]
[Black "Murzin, Volodar"]
[Result "1/2-1/2"]
[ECO "A53"]
[WhiteElo "2291"]
[BlackElo "2340"]
[Annotator "NA"]
[PlyCount "108"]
[EventDate "2018.10.20"]
[EventType "swiss"]
[EventCountry "GRE"]
[SourceTitle "playchess.com"]
[Source "ChessBase"]
[SourceQuality "1"]
[TimeControl "40/5400+30:1800+30"]

1. d4 {[%emt 0:00:00]} Nf6 {[%emt 0:00:25]} 2. c4 {[%emt 0:00:00]} d6 {[%emt 0:00:17]} 3. Nc3 {[%emt 0:00:00]} Nbd7 {[%emt 0:00:09]} 4. e4 {[%emt 0:00:05]} e5 {[%emt 0:00:36]} 5. d5 {[%emt 0:00:13]} g6 {[%emt 0:03:25]} 6. Be3 {[%emt 0:05:25]} Nc5 {[%emt 0:01:07]} 7. f3 {[%emt 0:01:18]} a5 {[%emt 0:00:36]} 8. Nge2 {[%emt 0:01:23]} Bg7 {[%emt 0:00:35]} 9. Nc1 {[%emt 0:09:11]} O-O {[%emt 0:01:53]} 10. Nd3 {[%emt 0:00:18]} b6 {[%emt 0:04:45]} 11. Nxc5 {[%emt 0:03:03]} dxc5 {[%emt 0:02:42]} 12. Bd3 {[%emt 0:10:39]} Ne8 {[%emt 0:00:45]} 13. Nb5 {[%emt 0:10:31]} Bd7 {[%emt 0:03:13]} 14. a4 {[%emt 0:04:18]} Bh6 $14 {[%emt 0:04:53]} 15. Bf2 {[%emt 0:04:05]} Bxb5 {[%emt 0:07:38]} 16. axb5 {[%emt 0:00:28]} Nd6 {[%emt 0:00:23]} 17. Qe2 {[%emt 0:01:57]} Qe7 {[%emt 0:06:49]} 18. Kd1 {[%emt 0:02:34]} Rae8 {[%emt 0:06:49]} 19. Kc2 {[%emt 0:04:56]} f5 {[%emt 0:01:58]} 20. Raf1 {[%emt 0:10:34]} Bg7 {[%emt 0:13:00]} 21. Be3 {[%emt 0:06:52]} Bf6 {[%emt 0:04:34]} 22. Bd2 {[%emt 0:01:14]} Rf7 {[%emt 0:00:51]} 23. g3 {[%emt 0:01:46]} Bg5 {[%emt 0:07:13]} 24. Bc3 {[%emt 0:00:08]} f4 {[%emt 0:02:07]} 25. h4 {[%emt 0:01:37]} Bf6 {[%emt 0:14:21]} 26. Qh2 {[%emt 0:00:08]} Kh8 {[%emt 0:03:09]} 27. g4 {[%emt 0:05:06]} Bg7 {[%emt 0:02:57]} 28. g5 {[%emt 0:00:31]} Kg8 {[%emt 0:00:27]} 29. Rfg1 {[%emt 0:00:29]} Rff8 {[%emt 0:01:03]} 30. Bf1 {[%emt 0:00:51]} Kf7 {[%emt 0:00:21]} 31. Bh3 {[%emt 0:00:30]} Qd8 {[%emt 0:00:52]} 32. Be6+ {[%emt 0:00:15]} Rxe6 {[%emt 0:00:33]} 33. dxe6+ {[%emt 0:00:05]} Kxe6 {[%emt 0:00:01]} 34. Rd1 {[%emt 0:01:48]} Qe8 {[%emt 0:01:24]} 35. b3 {[%emt 0:02:28]} Kf7 {[%emt 0:00:13]} 36. h5 {[%emt 0:00:30]} Qe6 {[%emt 0:00:44]} 37. hxg6+ {[%emt 0:01:25]} hxg6 {[%emt 0:00:07]} 38. Qd2 {[%emt 0:02:25]} Kg8 {[%emt 0:00:53]} 39. Rh4 {[%emt 0:05:34]} Rd8 {[%emt 0:00:26]} 40. Qh2 {[%emt 0:00:00]} Re8 {[%emt 0:00:00]} 41. Rh1 {[%emt 0:11:24]} a4 {[%emt 0:10:11]} 42. Rxf4 {[%emt 0:05:09]} axb3+ {[%emt 0:00:58]} 43. Kb2 {[%emt 0:00:59]} Nf7 {[%emt 0:00:20]} 44. Kxb3 {[%emt 0:01:51]} c6 {[%emt 0:01:33]} 45. Kb2 {[%emt 0:10:08]} cxb5 {[%emt 0:00:19]} 46. Qh7+ {[%emt 0:04:43]} Kf8 {[%emt 0:00:07]} 47. cxb5 {[%emt 0:01:14]} Ra8 {[%emt 0:00:40]} 48. Ra1 {[%emt 0:01:58]} Rxa1 {[%emt 0:01:36]} 49. Kxa1 {[%emt 0:00:03]} Qb3 {[%emt 0:00:23]} 50. Bb2 {[%emt 0:00:12]} Qa4+ {[%emt 0:00:33]} 51. Kb1 {[%emt 0:00:04]} Qd1+ {[%emt 0:00:06]} 52. Ka2 {[%emt 0:00:06]} Qa4+ {[%emt 0:00:36]} 53. Kb1 {[%emt 0:00:03]} Qd1+ {[%emt 0:00:15]} 54. Ka2 {[%emt 0:00:04]} Qa4+ {[%emt 0:00:50]} 1/2-1/2